fUST/lending_fUST_20250113
["ID","MTS","AMOUNT","RATE_DAILY","PERIOD"]
[348767868,1736777435358,-500.0,0.00019726,3]
[348767870,1736777435367,-500.0,0.00019726,3]
[348767871,1736777435377,-500.0,0.00019726,3]
[348767873,1736777435388,-500.0,0.00019726,3]
[348767875,1736777435398,-500.0,0.00019726,3]
[348767877,1736777435407,-1713.23,0.00019726,3]
[348767879,1736777435417,-500.0,0.00019726,3]
[348767880,1736777435426,-500.0,0.00019726,3]
[348767882,1736777435436,-643.1643404,0.00019726,3]
[348767884,1736777435445,-500.0,0.00019726,3]
[348767886,1736777435454,-500.0,0.00019726,3]
[348767888,1736777435464,-411.77577516,0.00019726,3]
[348767890,1736777435473,-500.0,0.00019726,3]
[348767891,1736777435483,-500.0,0.00019726,3]
[348767893,1736777435493,-500.0,0.00019726,3]
[348767895,1736777435502,-500.0,0.00019726,3]
[348767897,1736777435516,-500.0,0.00019726,3]
[348767899,1736777435526,-500.0,0.00019726,3]
[348767901,1736777435539,-500.0,0.00019726,3]
[348767903,1736777435552,-500.0,0.00019726,3]
[348767905,1736777435563,-500.0,0.00019726,3]
[348767907,1736777435576,-500.0,0.00019726,3]
[348767908,1736777435590,-500.0,0.00019726,3]
[348767910,1736777435601,-630.58,0.00019726,3]
[348767912,1736777435612,-500.0,0.00019726,3]
[348767914,1736777435621,-268.57340941,0.000199,2]
[348767915,1736777435631,-500.0,0.00019999,3]
[348767916,1736777435643,-500.0,0.00019999,3]
[348767918,1736777435652,-500.0,0.00019999,3]
[348767920,1736777435661,-500.0,0.00019999,3]
[348767921,1736777435672,-3302.0,0.0002,2]
[348767923,1736777435681,-500.0,0.0002,3]
[348767925,1736777435690,-582.42,0.0002,3]
[348767927,1736777435700,-500.0,0.0002,3]
[348767929,1736777435709,-300.0,0.0002,8]
[348767931,1736777435719,-500.0,0.0002,3]
[348767932,1736777435729,-500.0,0.0002,3]
[348767934,1736777435739,-500.0,0.0002,3]
[348767936,1736777435748,-528.92,0.0002,2]
[348767937,1736777435758,-500.0,0.0002,3]
[348767938,1736777435767,-500.0,0.0002,3]
[348767940,1736777435777,-500.0,0.0002,3]
[348767942,1736777435786,-500.0,0.0002,3]
[348767943,1736777435795,-500.0,0.0002,3]
[348767945,1736777435805,-500.0,0.0002,3]
[348767946,1736777435815,-506.39520152,0.0002,3]
[348767948,1736777435824,-500.0,0.0002,3]
[348767950,1736777435834,-500.0,0.0002,3]
[348767951,1736777435844,-1713.23,0.0002,3]
[348767953,1736777435853,-500.0,0.0002,3]
[348767955,1736777435863,-500.0,0.0002,3]
[348767957,1736777435873,-500.0,0.0002,3]
[348767959,1736777435883,-500.0,0.0002,3]
[348767961,1736777435893,-500.0,0.0002,3]
[348767962,1736777435903,-500.0,0.0002,3]
[348767964,1736777435912,-500.0,0.0002,3]
[348767966,1736777435922,-500.0,0.0002,3]
[348767968,1736777435931,-500.0,0.0002,3]
[348767970,1736777435941,-500.0,0.0002,3]
[348767972,1736777435951,-500.0,0.0002,3]
[348767973,1736777435964,-170.14435357,0.0002,3]
[348767974,1736777435978,-630.58,0.0002,3]
[348767975,1736777435989,-268.57340929,0.00020038,2]
[348767976,1736777435998,-268.57340929,0.00020176,2]
[348767977,1736777436008,-500.0,0.00020273,3]
[348767978,1736777436017,-528.92,0.00020273,2]
[348767979,1736777436027,-500.0,0.00020273,3]
[348767980,1736777436036,-500.0,0.00020273,3]
[348767981,1736777436046,-635.37,0.00020273,3]
[348767982,1736777436056,-500.0,0.00020273,3]
[348767983,1736777436065,-1713.23,0.00020273,3]
[348767984,1736777436076,-212.4,0.00020273,3]
[348767985,1736777436085,-500.0,0.00020273,3]
[348767986,1736777436096,-506.8537545,0.00020273,3]
[348767987,1736777436105,-508.2,0.00020273,3]
[348767988,1736777436114,-500.0,0.00020273,3]
[348767989,1736777436124,-500.0,0.00020273,3]
[348767990,1736777436224,-630.58,0.00020273,3]
[348767991,1736777436234,-268.57340929,0.00020314,2]
[348767992,1736777436244,-268.57340929,0.00020452,2]
[348767993,1736777436253,-179.548681,0.00020521,2]
[348767994,1736777436262,-500.0,0.00020547,3]
[348767995,1736777436272,-528.92,0.00020547,2]
[348767996,1736777436283,-500.0,0.00020547,3]
[348767997,1736777436292,-500.0,0.00020547,3]
[348767998,1736777436302,-1713.23,0.00020547,3]
[348767999,1736777436312,-641.32,0.00020547,3]
[348768000,1736777436321,-500.0,0.00020547,3]
[348768001,1736777436332,-630.58,0.00020547,3]
[348768002,1736777436344,-268.57340929,0.0002059,2]
[348768003,1736777436354,-268.57340929,0.00020728,2]
[348768004,1736777436363,-355.89,0.000208,2]
[348768005,1736777436373,-500.0,0.00020821,3]
[348768006,1736777436383,-528.92,0.00020821,2]
[348768007,1736777436393,-500.0,0.00020821,3]
[348768008,1736777436402,-500.0,0.00020821,3]
[348768009,1736777436412,-1713.23,0.00020821,3]
[348768010,1736777436422,-500.0,0.00020821,3]
[348768011,1736777436432,-268.57340929,0.00020866,2]
[348768012,1736777436442,-500.0,0.00020999,2]
[348768013,1736777436451,-620.93647025,0.00020999,2]
[348768014,1736777436461,-3000.0,0.00021,2]
[348768015,1736777436471,-268.57340929,0.00021003,2]
[348768016,1736777436481,-3000.0,0.0002101,2]
[348768017,1736777436491,-3000.0,0.0002102,2]
[348768018,1736777436501,-4932.270163,0.0002103,2]
[348768019,1736777436515,-603.80816604,0.00021095,3]
[348768020,1736777436525,-528.92,0.00021095,2]
[348768021,1736777436535,-500.0,0.00021095,3]
[348768022,1736777436546,-500.0,0.00021095,3]
[348768023,1736777436555,-1713.23,0.00021095,3]
[348768024,1736777436565,-268.57340929,0.00021141,2]
[348768025,1736777436575,-268.57340929,0.00021279,2]
[348768026,1736777436587,-528.92,0.00021369,2]
[348768027,1736777436599,-450.64,0.00021369,3]
[348768028,1736777436609,-1713.23,0.00021369,3]
[348768029,1736777436620,-268.57340929,0.00021417,2]
[348768030,1736777436630,-300.0,0.000215,9]
[348768031,1736777436640,-268.57340929,0.00021555,2]
[348768032,1736777436650,-3302.0,0.000216,4]
[348768033,1736777436660,-528.92,0.00021643,2]
[348768034,1736777436669,-1713.23,0.00021643,3]
[348768035,1736777436679,-268.57340929,0.00021693,2]
[348768036,1736777436688,-268.57340929,0.00021831,2]
[348768037,1736777436698,-528.92,0.00021917,2]
[348768038,1736777436708,-1713.23,0.00021917,3]
[348768039,1736777436718,-268.57340929,0.00021969,2]
[348768040,1736777436727,-268.57340929,0.00022107,2]
[348768041,1736777436736,-164.17953,0.00022174,2]
[348768042,1736777436747,-528.92,0.00022191,2]
[348768043,1736777436756,-1713.23,0.00022191,3]
[348768044,1736777436766,-268.57340929,0.00022245,2]
[348768045,1736777436776,-268.57340929,0.00022383,2]
[348768046,1736777436786,-1320.2979661,0.000224,2]
[348768047,1736777436796,-507.275,0.0002245,2]
[348768048,1736777436806,-528.92,0.00022465,2]
[348768049,1736777436815,-1713.23,0.00022465,3]
[348768050,1736777436825,-268.57340929,0.00022521,2]
[348768051,1736777436835,-395.0,0.00022579,2]
[348768052,1736777436845,-268.57340929,0.00022659,2]
[348768053,1736777436855,-528.92,0.00022739,2]
[348768054,1736777436864,-1713.23,0.00022739,3]
[348768055,1736777436874,-268.57340929,0.00022797,2]
[348768056,1736777436884,-500.0,0.00022838,2]
[348768057,1736777436893,-268.57340929,0.00022934,2]
[348768058,1736777436904,-3980.41224231,0.00023,2]
[348768059,1736777436914,-699.32273686,0.00023,2]
[348768060,1736777436923,-7438.69753278,0.00023,3]
[348768061,1736777436933,-300.0,0.00023,10]
[348768062,1736777436942,-528.92,0.00023013,2]
[348768063,1736777436953,-1713.23,0.00023013,3]
[348768064,1736777436964,-309.2590886,0.00023068,2]
[348768065,1736777436974,-153.0,0.00023068,2]
[348768066,1736777436983,-506.37838115,0.00023072,2]
[348768067,1736777436993,-268.57340929,0.00023072,2]
[348768068,1736777437002,-535.0,0.00023073,2]
[348768069,1736777437012,-2081.0,0.00023073,2]
[348768070,1736777437022,-2317.0,0.00023073,2]
[348768071,1736777437031,-268.57340929,0.0002321,2]
[348768072,1736777437041,-528.92,0.00023287,2]
[348768073,1736777437051,-1713.23,0.00023287,3]
[348768074,1736777437061,-178.58,0.0002331,2]
[348768075,1736777437071,-3302.0,0.00023328,7]
[348768076,1736777437080,-268.57340929,0.00023348,2]
[348768077,1736777437091,-1000.0,0.00023386,2]
[348768078,1736777437100,-212.2556853,0.00023391,2]
[348768079,1736777437110,-268.57340929,0.00023486,2]
[348768080,1736777437119,-1000.0,0.00023529,2]
[348768081,1736777437129,-1000.0,0.00023555,2]
[348768082,1736777437138,-528.92,0.00023561,2]
[348768083,1736777437148,-1713.23,0.00023561,3]
[348768084,1736777437158,-151.0,0.000236,10]
[348768085,1736777437167,-151.0,0.000236,8]
[348768086,1736777437177,-151.0,0.000236,5]
[348768087,1736777437186,-151.0,0.000236,5]
[348768088,1736777437196,-151.0,0.000236,10]
[348768089,1736777437205,-151.0,0.00023616,7]
[348768090,1736777437215,-151.0,0.00023616,7]
[348768091,1736777437225,-151.0,0.00023616,7]
[348768092,1736777437235,-151.0,0.00023616,7]
[348768093,1736777437244,-151.0,0.00023616,7]
[348768094,1736777437253,-151.0,0.00023616,7]
[348768095,1736777437263,-160.896432,0.00023616,7]
[348768096,1736777437272,-151.0,0.00023616,2]
[348768097,1736777437282,-151.0,0.00023616,7]
[348768098,1736777437292,-151.0,0.00023616,7]
[348768099,1736777437301,-151.0,0.00023616,7]
[348768100,1736777437311,-151.0,0.00023616,7]
[348768101,1736777437320,-151.0,0.00023616,7]
[348768102,1736777437330,-151.0,0.00023616,7]
[348768103,1736777437339,-151.0,0.00023616,7]
[348768104,1736777437349,-151.0,0.00023616,7]
[348768105,1736777437359,-188.306684,0.00023616,7]
[348768106,1736777437368,-151.0,0.00023616,7]
[348768107,1736777437377,-151.0,0.00023616,7]
[348768108,1736777437386,-151.0,0.00023616,7]
[348768109,1736777437396,-151.0,0.00023616,7]
[348768110,1736777437406,-151.0,0.00023616,7]
[348768111,1736777437416,-257.632826,0.00023616,7]
[348768112,1736777437425,-9626.09617182,0.00023618,5]
[348768113,1736777437435,-5783.18975639,0.00023618,5]
[348768114,1736777437444,-17417.86788391,0.00023618,10]
[348768118,1736777437628,-692.03807356,0.00023618,10]
[348768119,1736777437640,-39139.64227126,0.00023618,10]
[348768165,1736777438153,-630.58,0.00020821,3]
[348768167,1736777438163,-630.58,0.00021095,3]
[348768169,1736777438174,-630.58,0.00021369,3]
[348768171,1736777438184,-94.22508685,0.00021643,3]
[348768180,1736777438259,-536.35491315,0.00021643,3]
[348768182,1736777438270,-630.58,0.00021917,3]
[348768184,1736777438279,-630.58,0.00022191,3]
[348768186,1736777438289,-2482683.56739064,0.00023618,10]
[348768188,1736777438299,-217.88354246,0.00023618,15]
[348768190,1736777438309,-233.21971045,0.00023618,10]
[348768192,1736777438318,-200.0,0.00023618,10]
[348768194,1736777438327,-562662.28510195,0.00023618,10]
[348768196,1736777438338,-25000.0,0.00023618,2]
[348768198,1736777438349,-3026244.58866999,0.00023618,10]
[348768200,1736777438361,-8742.49242107,0.00023618,10]
[348768421,1736777440501,-630.58,0.00022465,3]
[348768423,1736777440516,-872.05285657,0.00023618,10]
[348768717,1736777443158,-500.0,0.00019178,2]
[348768721,1736777443186,-500.0,0.00019178,2]
[348768723,1736777443196,-500.0,0.00019178,2]
[348768725,1736777443205,-1.53385779,0.00019178,2]
[348769043,1736777446185,-498.46614221,0.00019178,2]
[348769045,1736777446195,-192.63125779,0.00019178,2]
[348769048,1736777446211,-307.36874221,0.00019178,2]
[348769050,1736777446221,-500.0,0.00019178,2]
[348769052,1736777446230,-500.0,0.00019452,2]
[348769054,1736777446240,-500.0,0.00019726,2]
[348769056,1736777446249,-500.0,0.00019798,3]
[348769058,1736777446258,-500.0,0.0002,2]
[348769060,1736777446268,-500.0,0.00020273,2]
[348769062,1736777446277,-500.0,0.00020547,2]
[348769064,1736777446287,-500.0,0.00020821,2]
[348769066,1736777446296,-500.0,0.00021095,2]
[348769068,1736777446305,-500.0,0.00021369,2]
[348769070,1736777446314,-500.0,0.00021643,2]
[348769072,1736777446324,-428.45546237,0.00021917,2]
[348769074,1736777446333,-630.58,0.00022739,3]
[348769075,1736777446342,-630.58,0.00023013,3]
[348769077,1736777446351,-630.58,0.00023287,3]
[348769079,1736777446361,-630.58,0.00023561,3]
[348769082,1736777446370,-89890.34279494,0.00023618,10]
[348770391,1736777939438,-300.0,0.00019177,2]
[348770392,1736777939463,-503.71947168,0.00019178,2]
[348770393,1736777939488,-500.0,0.00019178,2]
[348770394,1736777939512,-500.0,0.00019178,2]
[348770395,1736777939536,-526.55,0.00019178,2]
[348770396,1736777939560,-505.31433812,0.00019178,2]
[348770397,1736777939584,-350.21526622,0.00019178,2]
[348770398,1736777939614,-500.0,0.00019178,2]
[348770399,1736777939640,-543.17,0.00019178,2]
[348770400,1736777939671,-543.17,0.00019451,3]
[348770401,1736777939696,-543.17,0.00019451,3]
[348770402,1736777939724,-526.55,0.00019452,3]
[348770403,1736777939750,-500.0,0.00019452,3]
[348770404,1736777939775,-154.32,0.00019452,2]
[348770405,1736777939801,-526.55,0.00019726,3]
[348770406,1736777939827,-500.0,0.00019726,3]
[348770407,1736777939851,-500.0,0.00019999,3]
[348770408,1736777939875,-500.0,0.00019999,3]
[348770409,1736777939900,-543.17,0.00019999,3]
[348770410,1736777939928,-526.55,0.0002,3]
[348770411,1736777939954,-500.0,0.0002,3]
[348770412,1736777977543,500.0,0.00019178,2]
[348770413,1736777979392,500.0,0.00019178,2]
[348770414,1736777981377,500.0,0.00019178,2]
[348770415,1736777981712,500.0,0.00019178,2]
[348770416,1736777982588,500.0,0.00019452,3]
[348770417,1736777983068,500.0,0.00019726,3]
[348770418,1736777983585,500.0,0.0002,3]
[348770419,1736778007928,510.396026,0.00019178,2]
[348770421,1736778019048,500.0,0.00019178,2]
[348770438,1736778022255,750.0,0.00024,30]
[348770439,1736778077165,500.0,0.00019178,2]
[348770440,1736778077763,500.0,0.00019452,3]
[348770441,1736778078275,500.0,0.00019726,3]
[348770442,1736778078841,175.37941783,0.0002,3]
[348770443,1736778138542,538.29,0.00019178,2]
[348770444,1736778139661,538.29,0.00019452,3]
[348770445,1736778140117,538.29,0.00019726,3]
[348770446,1736778140838,538.29,0.0002,3]
[348770447,1736778150341,500.0,0.00019178,2]
[348770448,1736778151790,500.0,0.00019451,3]
[348770449,1736778152634,500.0,0.00019451,3]
[348770450,1736778152872,500.0,0.00019999,3]
[348770451,1736778153904,500.0,0.00019725,3]
[348770452,1736778154975,500.0,0.00019999,3]
[348770453,1736778200975,500.0,0.00019178,2]
[348770454,1736778201503,500.0,0.00019452,3]
[348770455,1736778202206,500.0,0.00019726,3]
[348770456,1736778202803,500.0,0.0002,3]
[348770457,1736778234482,165.695422,0.00013973,2]
[348770459,1736778294922,500.0,0.00019999,3]
[348770577,1736778331680,500.0,0.00019178,2]
[348770578,1736778333325,500.0,0.00019178,2]
[348770579,1736778333965,500.0,0.00019178,2]
[348770580,1736778334446,500.0,0.00019451,3]
[348770581,1736778334980,500.0,0.00019451,3]
[348770582,1736778336010,500.0,0.00019725,3]
[348770583,1736778336775,500.0,0.00019725,3]
[348770584,1736778338164,500.0,0.00019999,3]
[348770587,1736778380588,797.75974581,0.00019973,2]
[348770588,1736778436162,-157.05082354,0.00020004,2]
[348770590,1736778453124,-168.49970246,0.00020004,2]
[348770591,1736778453150,-314.55779548,0.00020073,2]
[348770592,1736778453178,-500.0,0.00020273,3]
[348770593,1736778453202,-604.80965965,0.00020547,2]
[348770594,1736778453230,-237.44543575,0.00020547,3]
[348770595,1736778477647,500.0,0.00019178,2]
[348770596,1736778478107,500.0,0.00019178,2]
[348770597,1736778478597,500.0,0.00019178,2]
[348770598,1736778479258,500.0,0.00019178,2]
[348770599,1736778480548,500.0,0.00019451,3]
[348770600,1736778481090,500.0,0.00019451,3]
[348770601,1736778481602,500.0,0.00019725,3]
[348770602,1736778482218,500.0,0.00019725,3]
[348770603,1736778483586,363.49285657,0.00019999,3]
[348770622,1736778511723,8715.69668337,0.0002,2]
[348770623,1736778514691,15451.31648849,0.0002,2]
[348770641,1736778558535,500.0,0.00019178,2]
[348770642,1736778559072,500.0,0.00019452,3]
[348770643,1736778559726,500.0,0.00019726,3]
[348770644,1736778561104,500.0,0.0002,3]
[348770645,1736778566021,500.0,0.00019999,3]
[348770646,1736778599287,500.0,0.00019178,2]
[348770647,1736778600064,500.0,0.00019452,3]
[348770648,1736778600714,500.0,0.00019726,3]
[348770649,1736778601221,500.0,0.0002,3]
[348771090,1736778630477,521.5330975,0.000189,2]
[348771127,1736778631432,500.0,0.00019178,2]
[348771166,1736778632573,500.0,0.00019452,3]
[348771169,1736778632627,-500.0,0.00020273,3]
[348771170,1736778632637,-500.0,0.00020547,3]
[348771172,1736778632646,-500.0,0.00020821,3]
[348771173,1736778632656,-487.22,0.000209,2]
[348771174,1736778632666,-186.28,0.00021029,2]
[348771176,1736778632676,-500.0,0.00021084,3]
[348771177,1736778632685,-500.0,0.00021084,3]
[348771178,1736778632695,-554.91584485,0.00021084,3]
[348771179,1736778632706,-500.0,0.00021084,2]
[348771181,1736778632721,-543.96,0.00021084,3]
[348771182,1736778632731,-500.0,0.00021084,3]
[348771183,1736778632741,-500.0,0.00021084,3]
[348771185,1736778632751,-437.69481919,0.00021084,3]
[348771186,1736778632763,-62.30518081,0.00021084,3]
[348771187,1736778632774,-500.0,0.00021084,3]
[348771189,1736778632783,-1000.0,0.00021084,7]
[348771190,1736778632793,-2488.05966919,0.00021085,2]
[348771193,1736778632848,-356.22996381,0.00021085,2]
[348771196,1736778632862,-5654.03908324,0.00021085,2]
[348771214,1736778633376,500.0,0.00019726,3]
[348771247,1736778634291,500.0,0.0002,3]
[348771362,1736778638380,-500.0,0.00020273,3]
[348771363,1736778638390,-500.0,0.00020547,3]
[348771364,1736778638400,-500.0,0.00020821,3]
[348771366,1736778638409,-16401.67128376,0.00021085,2]
[348771367,1736778638419,-500.0,0.00021095,3]
[348771368,1736778638428,-500.0,0.00021095,3]
[348771369,1736778638438,-292.90301979,0.00021358,2]
[348771371,1736778638447,-500.0,0.00021358,3]
[348771372,1736778638457,-500.0,0.00021369,3]
[348771373,1736778638468,-500.0,0.00021499,2]
[348771374,1736778638477,-500.0,0.00021499,2]
[348771375,1736778638487,-390.66365803,0.00021499,2]
[348771377,1736778638497,-429.44282384,0.00021499,2]
[348771378,1736778638507,-4599.32717687,0.000215,2]
[348771379,1736778638523,-57038.55840651,0.000215,2]
[348771381,1736778638533,-500.0,0.00021632,3]
[348771384,1736778638543,-350.16127013,0.00021643,3]
[348771386,1736778638552,-500.0,0.00021906,3]
[348771388,1736778638561,-14020.66202246,0.00022,2]
[348771391,1736778638571,-165.695422,0.00022174,2]
[348771392,1736778638580,-500.0,0.0002218,3]
[348771393,1736778638589,-465.1084233,0.00022209,2]
[348771394,1736778638599,-516.476,0.0002245,2]
[348771395,1736778638608,-500.0,0.00022454,3]
[348771397,1736778638618,-500.0,0.00022728,3]
[348771398,1736778638628,-508.33083847,0.00022738,7]
[348771399,1736778638637,-500.0,0.00022738,2]
[348771400,1736778638647,-188.0,0.00022738,2]
[348771402,1736778638656,-502.80536633,0.00022738,3]
[348771403,1736778638666,-54158.11816374,0.0002287,2]
[348771404,1736778638675,-10000.0,0.0002289,5]
[348771405,1736778638685,-7403.45833297,0.00023,2]
[348771407,1736778638695,-500.0,0.00023002,3]
[348771408,1736778638704,-500.0,0.00023276,3]
[348771409,1736778638716,-174.8940029,0.00023391,2]
[348771410,1736778638725,-600.0,0.00023408,2]
[348771412,1736778638735,-395.0,0.00023435,2]
[348771413,1736778638745,-466.89265057,0.00023518,2]
[348771414,1736778638755,-500.0,0.00023524,2]
[348771415,1736778638764,-260.69724361,0.00023524,2]
[348771417,1736778638774,-557.84162084,0.00023524,2]
[348771418,1736778638784,-157.0,0.00023525,2]
[348771419,1736778638794,-157.0,0.00023525,2]
[348771420,1736778638803,-157.0,0.00023525,2]
[348771422,1736778638812,-157.0,0.00023525,2]
[348771423,1736778638822,-157.0,0.00023525,2]
[348771424,1736778638832,-157.0,0.00023525,2]
[348771425,1736778638842,-157.0,0.00023525,2]
[348771427,1736778638854,-157.0,0.00023525,2]
[348771428,1736778638863,-157.0,0.00023525,2]
[348771429,1736778638873,-157.0,0.00023525,2]
[348771430,1736778638883,-157.0,0.00023525,2]
[348771432,1736778638892,-157.0,0.00023525,2]
[348771433,1736778638902,-157.0,0.00023525,2]
[348771434,1736778638912,-157.0,0.00023525,2]
[348771435,1736778638922,-157.0,0.00023525,2]
[348771437,1736778638932,-157.0,0.00023525,2]
[348771438,1736778638941,-157.0,0.00023525,2]
[348771439,1736778638951,-157.0,0.00023525,2]
[348771440,1736778638960,-157.0,0.00023525,2]
[348771441,1736778638974,-157.0,0.00023525,2]
[348771443,1736778638983,-164.01,0.00023525,2]
[348771444,1736778638992,-178.0,0.00023525,2]
[348771445,1736778639002,-178.0,0.00023525,2]
[348771446,1736778639012,-500.0,0.0002355,3]
[348771448,1736778639022,-188.0,0.000236,2]
[348771449,1736778639031,-27047.90896791,0.000236,5]
[348771450,1736778639040,-1204.624,0.000236,2]
[348771451,1736778639050,-151.0,0.00023611,7]
[348771453,1736778639059,-151.0,0.00023611,7]
[348771454,1736778639069,-153.219176,0.00023611,7]
[348771455,1736778639079,-151.0,0.00023611,7]
[348771456,1736778639088,-9084.90072212,0.00023614,5]
[348771458,1736778639097,-4356.73481082,0.00023614,5]
[348771459,1736778639107,-151.0,0.00023614,7]
[348771460,1736778639117,-151.0,0.00023614,7]
[348771461,1736778639126,-151.0,0.00023614,7]
[348771463,1736778639136,-151.0,0.00023614,7]
[348771464,1736778639146,-151.0,0.00023614,7]
[348771465,1736778639155,-158.020237,0.00023614,7]
[348771466,1736778639164,-151.0,0.00023614,7]
[348771468,1736778639173,-291.981212,0.00023614,7]
[348771469,1736778639184,-151.0,0.00023614,7]
[348771470,1736778639193,-151.0,0.00023614,7]
[348771471,1736778639202,-151.0,0.00023614,7]
[348771473,1736778639212,-151.0,0.00023614,7]
[348771474,1736778639224,-9536351.87391663,0.00023614,10]
[348771504,1736778640695,-500.0,0.00021369,3]
[348771505,1736778640706,-92.0,0.00021643,3]
[348771605,1736778646489,-408.0,0.00021643,3]
[348771607,1736778646499,-54.5,0.00021917,3]
[348771608,1736778646512,-445.5,0.00021917,3]
[348771610,1736778646535,-296.624,0.00022191,3]
[348772950,1736778880305,300.0,0.0002,8]
[348772956,1736778953887,500.0,0.00019178,2]
[348772957,1736778954865,500.0,0.00019452,3]
[348772958,1736778955259,231.94056425,0.00019726,3]
[348772962,1736779179136,302.66710253,0.00019627,2]
[348772963,1736779209888,165.673755,0.00013973,2]
[348772982,1736779632214,-1353.31569933,0.00020983,2]
[348772983,1736779654198,-151.98403071,0.00020983,2]
[348772984,1736779696878,350.16127013,0.00019178,2]
[348772985,1736779759120,-624.60376517,0.00020524,2]
[348773086,1736779832792,-956.49760395,0.00020524,2]
[348773088,1736779832812,-148.88039558,0.00020524,2]
[348773091,1736779832822,-450.31960442,0.00020983,2]
[348773095,1736779832853,-398.30772376,0.00020983,2]
[348773097,1736779832862,-300.0,0.00021082,2]
[348773099,1736779832872,-361.0,0.00021082,2]
[348773101,1736779832882,-999.42589604,0.00021083,2]
[348773102,1736779832891,-8423.0,0.00021083,4]
[348773103,1736779832901,-500.0,0.00021083,2]
[348773105,1736779832911,-500.0,0.00021084,3]
[348773107,1736779832920,-500.0,0.00021084,7]
[348773109,1736779832930,-500.0,0.00021084,3]
[348773111,1736779832939,-500.0,0.00021084,3]
[348773112,1736779832949,-500.0,0.00021084,3]
[348773113,1736779832959,-500.0,0.00021084,3]
[348773114,1736779832969,-500.0,0.00021084,3]
[348773115,1736779832980,-500.0,0.00021084,3]
[348773116,1736779832990,-500.0,0.00021084,3]
[348773117,1736779833001,-500.0,0.00021084,3]
[348773118,1736779833013,-500.0,0.00021084,3]
[348773119,1736779833023,-500.0,0.00021084,3]
[348773120,1736779833035,-500.0,0.00021084,3]
[348773121,1736779833051,-500.0,0.00021084,3]
[348773122,1736779833062,-500.0,0.00021084,3]
[348773123,1736779833073,-258.5902547,0.00021084,3]
[348773124,1736779833083,-524.57,0.000212,2]
[348773125,1736779833094,-500.0,0.00021357,2]
[348773126,1736779833105,-399.512392,0.00021358,3]
[348773127,1736779833116,-341.88223984,0.00021499,3]
[348773128,1736779833126,-300.0,0.000215,9]
[348773129,1736779833136,-397.68873167,0.00021514,2]
[348773130,1736779833147,-501.4401384,0.00021631,2]
[348773131,1736779833157,-162.775263,0.00021767,2]
[348773132,1736779833167,-500.0,0.00021769,9]
[348773133,1736779833178,-158.82698043,0.00021999,2]
[348773134,1736779833190,-108503.29453952,0.00022,2]
[348773135,1736779833200,-465.1084233,0.00022211,2]
[348773136,1736779833210,-516.188,0.0002244,2]
[348773137,1736779833222,-353.3287683,0.00022658,2]
[348773138,1736779833232,-165.673755,0.00022759,2]
[348773139,1736779833242,-259.2908518,0.00022795,2]
[348773140,1736779833252,-306.6087742,0.00022795,2]